fUST/lending_fUST_20250220
["ID","MTS","AMOUNT","RATE_DAILY","PERIOD"]
[353778261,1740041437377,-500.0,0.00013698,2]
[353778262,1740041437389,-500.0,0.00013698,2]
[353778263,1740041437398,-501.7725378,0.00013698,2]
[353778264,1740041437408,-366.54397346,0.00013698,2]
[353778265,1740041437418,-500.0,0.00013698,2]
[353778266,1740041437427,-501.25861821,0.00013698,2]
[353778267,1740041437437,-500.0,0.00013698,2]
[353778268,1740041437447,-636.97,0.00013698,2]
[353778269,1740041437456,-500.0,0.00013698,2]
[353778270,1740041437468,-500.0,0.00013698,2]
[353778271,1740041437478,-500.0,0.00013698,2]
[353778272,1740041437488,-500.0,0.00013698,2]
[353778273,1740041437497,-500.0,0.00013698,2]
[353778274,1740041437506,-501.81152663,0.00013698,2]
[353778275,1740041437515,-500.93852553,0.00013698,2]
[353778276,1740041437524,-500.0,0.00013698,2]
[353778277,1740041437533,-500.0,0.00013698,2]
[353778278,1740041437543,-475.97749747,0.00013698,2]
[353778279,1740041437552,-500.0,0.00013698,2]
[353778280,1740041437561,-4257.94,0.00013698,2]
[353778281,1740041437571,-500.77620253,0.00013698,2]
[353778282,1740041437580,-500.0,0.00013698,2]
[353778283,1740041437589,-500.0,0.00013698,2]
[353778284,1740041437598,-500.0,0.00013698,2]
[353778285,1740041437607,-500.0,0.00013698,2]
[353778286,1740041437617,-500.48068869,0.00013698,2]
[353778287,1740041437626,-501.6736211,0.00013698,2]
[353778288,1740041437635,-501.89892882,0.00013698,2]
[353778289,1740041437644,-506.24839808,0.00013698,2]
[353778290,1740041437654,-1466.39,0.00013698,2]
[353778291,1740041437666,-500.0,0.00013698,2]
[353778292,1740041437676,-500.0,0.00013698,2]
[353778293,1740041437687,-500.0,0.00013698,2]
[353778294,1740041437696,-500.0,0.00013698,2]
[353778296,1740041437706,-500.0,0.00013698,2]
[353778297,1740041437715,-1718.55,0.00013698,2]
[353778298,1740041437725,-500.0,0.00013698,2]
[353778299,1740041437735,-195.908106,0.00013699,2]
[353778300,1740041437745,-326.803359,0.00013699,2]
[353778301,1740041437756,-349.30033,0.00013699,2]
[353778302,1740041437767,-349.30033,0.00013699,2]
[353778303,1740041437776,-153.659182,0.00013699,2]
[353778304,1740041437785,-153.659182,0.00013699,2]
[353778305,1740041437795,-152.852917,0.00013699,2]
[353778306,1740041437804,-152.852917,0.00013699,2]
[353778307,1740041437813,-771.754045,0.00013699,2]
[353778309,1740041437823,-771.754045,0.00013699,2]
[353778311,1740041437832,-330.766293,0.00013699,2]
[353778313,1740041437842,-330.766293,0.00013699,2]
[353778314,1740041437852,-196.415121,0.00013699,2]
[353778315,1740041437862,-196.415121,0.00013699,2]
[353778316,1740041437871,-251.542387,0.00013699,2]
[353778317,1740041437880,-251.542387,0.00013699,2]
[353778318,1740041437889,-151.0,0.00013699,2]
[353778319,1740041437899,-1958.157841,0.00013699,2]
[353778320,1740041437908,-273.907041,0.00013699,2]
[353778321,1740041437918,-1958.157841,0.00013699,2]
[353778322,1740041437927,-273.907041,0.00013699,2]
[353778323,1740041437936,-1015.882497,0.00013699,2]
[353778324,1740041437945,-1015.882497,0.00013699,2]
[353778325,1740041437955,-3903.700981,0.00013699,2]
[353778326,1740041437964,-3903.700981,0.00013699,2]
[353778327,1740041437973,-398.549152,0.00013699,2]
[353778328,1740041437982,-398.549152,0.00013699,2]
[353778329,1740041437992,-222.806484,0.00013699,2]
[353778330,1740041438001,-222.806484,0.00013699,2]
[353778331,1740041438010,-151.0,0.00013699,2]
[353778332,1740041438019,-151.0,0.00013699,2]
[353778333,1740041438029,-979.865364,0.00013699,2]
[353778334,1740041438039,-979.865364,0.00013699,2]
[353778336,1740041438048,-180.0,0.00013699,2]
[353778337,1740041438057,-180.0,0.00013699,2]
[353778339,1740041438068,-813.146497,0.00013699,2]
[353778341,1740041438077,-813.146497,0.00013699,2]
[353778343,1740041438087,-236.62778,0.00013699,2]
[353778345,1740041438096,-236.62778,0.00013699,2]
[353778347,1740041438105,-276.532172,0.00013699,2]
[353778349,1740041438115,-151.0,0.00013699,2]
[353778351,1740041438125,-276.532172,0.00013699,2]
[353778352,1740041438136,-499.672447,0.00013699,2]
[353778354,1740041438145,-499.672447,0.00013699,2]
[353778356,1740041438155,-200.947659,0.00013699,2]
[353778359,1740041438165,-265.504582,0.00013699,2]
[353778360,1740041438174,-200.947659,0.00013699,2]
[353778362,1740041438185,-265.504582,0.00013699,2]
[353778363,1740041438193,-151.0,0.00013699,2]
[353778364,1740041438203,-151.0,0.00013699,2]
[353778365,1740041438213,-151.0,0.00013699,2]
[353778366,1740041438222,-405.0,0.00013699,2]
[353778367,1740041438231,-405.0,0.00013699,2]
[353778368,1740041438240,-151.0,0.00013699,2]
[353778369,1740041438249,-866.24869736,0.00013699,2]
[353778370,1740041438259,-866.24869736,0.00013699,2]
[353778371,1740041438269,-866.24869736,0.00013699,2]
[353778372,1740041438278,-866.24869736,0.00013699,2]
[353778373,1740041438288,-866.24869736,0.00013699,2]
[353778374,1740041438297,-866.24869736,0.00013699,2]
[353778375,1740041438306,-866.24869736,0.00013699,2]
[353778376,1740041438315,-866.24869736,0.00013699,2]
[353778377,1740041438325,-465.11567959,0.00013732,2]
[353778378,1740041438334,-206.18651142,0.00013733,2]
[353778379,1740041438343,-982.6015851,0.00013746,2]
[353778380,1740041438352,-151.0,0.00013746,2]
[353778381,1740041438362,-284.276308,0.00013746,2]
[353778382,1740041438371,-284.276308,0.00013746,2]
[353778383,1740041438380,-488.830567,0.00013746,2]
[353778384,1740041438394,-488.830567,0.00013746,2]
[353778385,1740041438403,-524.571159,0.00013746,2]
[353778386,1740041438413,-524.571159,0.00013746,2]
[353778387,1740041438424,-4085.05366912,0.00013746,2]
[353778388,1740041438435,-847.67962803,0.00013759,2]
[353778389,1740041438444,-153.0,0.00013761,2]
[353778390,1740041438454,-185.32488158,0.00013773,2]
[353778391,1740041438465,-500.0,0.00013773,2]
[353778392,1740041438475,-500.0,0.00013773,2]
[353778393,1740041438484,-500.0,0.00013773,2]
[353778394,1740041438494,-500.0,0.00013773,2]
[353778395,1740041438503,-258.546649,0.00013779,2]
[353778396,1740041438512,-258.546649,0.00013779,2]
[353778397,1740041438521,-373.564994,0.00013779,2]
[353778398,1740041438531,-373.564994,0.00013779,2]
[353778399,1740041438540,-349.30033,0.0001378,2]
[353778400,1740041438549,-349.30033,0.0001378,2]
[353778401,1740041438558,-153.659182,0.0001378,2]
[353778402,1740041438568,-153.659182,0.0001378,2]
[353778403,1740041438577,-152.852917,0.0001378,2]
[353778404,1740041438587,-152.852917,0.0001378,2]
[353778405,1740041438596,-771.754045,0.0001378,2]
[353778406,1740041438605,-771.754045,0.0001378,2]
[353778407,1740041438615,-771.754045,0.0001378,2]
[353778408,1740041438624,-771.754045,0.0001378,2]
[353778409,1740041438633,-330.766293,0.0001378,2]
[353778410,1740041438643,-330.766293,0.0001378,2]
[353778411,1740041438652,-330.766293,0.0001378,2]
[353778412,1740041438661,-330.766293,0.0001378,2]
[353778413,1740041438670,-196.415121,0.0001378,2]
[353778414,1740041438679,-196.415121,0.0001378,2]
[353778415,1740041438689,-196.415121,0.0001378,2]
[353778416,1740041438698,-196.415121,0.0001378,2]
[353778417,1740041438707,-251.542387,0.0001378,2]
[353778418,1740041438716,-251.542387,0.0001378,2]
[353778419,1740041438726,-251.542387,0.0001378,2]
[353778420,1740041438735,-251.542387,0.0001378,2]
[353778421,1740041438746,-500.0,0.0001378,2]
[353778422,1740041438755,-500.0,0.0001378,2]
[353778423,1740041438765,-151.0,0.0001378,2]
[353778424,1740041438777,-151.0,0.0001378,2]
[353778425,1740041438786,-500.0,0.0001378,2]
[353778426,1740041438796,-500.0,0.0001378,2]
[353778427,1740041438805,-500.0,0.0001378,2]
[353778428,1740041438814,-500.0,0.0001378,2]
[353778429,1740041438823,-509.82507298,0.0001378,2]
[353778430,1740041438833,-242.05911,0.0001378,2]
[353778431,1740041438842,-502.11629746,0.0001378,2]
[353778432,1740041438851,-501.71224327,0.0001378,2]
[353778433,1740041438860,-251.03731593,0.0001378,2]
[353778434,1740041438869,-242.05911,0.0001378,2]
[353778435,1740041438878,-500.0,0.0001378,2]
[353778436,1740041438888,-500.0,0.0001378,2]
[353778437,1740041438898,-151.0,0.0001378,2]
[353778438,1740041438907,-151.0,0.0001378,2]
[353778439,1740041438917,-348.95737611,0.0001378,2]
[353778440,1740041438926,-204.87314872,0.0001378,2]
[353778441,1740041438935,-500.0,0.0001378,2]
[353778442,1740041438944,-506.35499529,0.0001378,2]
[353778443,1740041438954,-506.29992307,0.0001378,2]
[353778444,1740041438964,-379.230517,0.0001378,2]
[353778445,1740041438973,-500.0,0.0001378,2]
[353778446,1740041438982,-379.230517,0.0001378,2]
[353778447,1740041438991,-500.0,0.0001378,2]
[353778448,1740041439000,-338.40715389,0.0001378,2]
[353778449,1740041439011,-151.0,0.0001378,2]
[353778450,1740041439020,-151.0,0.0001378,2]
[353778451,1740041439030,-500.0,0.0001378,2]
[353778452,1740041439040,-505.40502135,0.0001378,2]
[353778453,1740041439050,-186.229557,0.0001378,2]
[353778454,1740041439059,-186.229557,0.0001378,2]
[353778455,1740041439069,-186.229557,0.0001378,2]
[353778456,1740041439078,-186.229557,0.0001378,2]
[353778457,1740041439088,-500.0,0.0001378,2]
[353778458,1740041439097,-500.0,0.0001378,2]
[353778459,1740041439107,-507.491108,0.0001378,2]
[353778460,1740041439118,-599.22,0.0001378,2]
[353778461,1740041439127,-507.491108,0.0001378,2]
[353778462,1740041439136,-151.0,0.0001378,2]
[353778463,1740041439146,-151.0,0.0001378,2]
[353778464,1740041439154,-507.491108,0.0001378,2]
[353778465,1740041439164,-507.491108,0.0001378,2]
[353778466,1740041439173,-500.0,0.0001378,2]
[353778467,1740041439182,-245.048547,0.0001378,2]
[353778468,1740041439191,-245.048547,0.0001378,2]
[353778469,1740041439200,-245.048547,0.0001378,2]
[353778470,1740041439210,-245.048547,0.0001378,2]
[353778471,1740041439219,-500.0,0.0001378,2]
[353778472,1740041439228,-505.89212369,0.0001378,2]
[353778473,1740041439239,-500.0,0.0001378,2]
[353778474,1740041439249,-577.656389,0.0001378,2]
[353778475,1740041439259,-577.656389,0.0001378,2]
[353778476,1740041439269,-612.03,0.0001378,2]
[353778477,1740041439278,-577.656389,0.0001378,2]
[353778478,1740041439287,-577.656389,0.0001378,2]
[353778479,1740041439297,-643.88,0.0001378,2]
[353778480,1740041439306,-151.0,0.0001378,2]
[353778481,1740041439315,-500.0,0.0001378,2]
[353778482,1740041439324,-500.0,0.0001378,2]
[353778483,1740041439333,-303.656289,0.0001378,2]
[353778484,1740041439343,-303.656289,0.0001378,2]
[353778485,1740041439353,-303.656289,0.0001378,2]
[353778486,1740041439362,-303.656289,0.0001378,2]
[353778487,1740041439372,-510.36488558,0.0001378,2]
[353778488,1740041439381,-500.0,0.0001378,2]
[353778489,1740041439394,-500.0,0.0001378,2]
[353778490,1740041439403,-918.127534,0.0001378,2]
[353778491,1740041439412,-918.127534,0.0001378,2]
[353778492,1740041439421,-500.0,0.0001378,2]
[353778493,1740041439430,-500.0,0.0001378,2]
[353778494,1740041439440,-918.127534,0.0001378,2]
[353778495,1740041439449,-407.642727,0.0001378,2]
[353778496,1740041439459,-918.127534,0.0001378,2]
[353778497,1740041439469,-407.642727,0.0001378,2]
[353778498,1740041439478,-407.642727,0.0001378,2]
[353778499,1740041439488,-407.642727,0.0001378,2]
[353778500,1740041439497,-500.0,0.0001378,2]
[353778501,1740041439507,-568.84,0.0001378,2]
[353778502,1740041439516,-500.0,0.0001378,2]
[353778503,1740041439525,-151.0,0.0001378,2]
[353778504,1740041439535,-151.0,0.0001378,2]
[353778505,1740041439544,-151.0,0.0001378,2]
[353778506,1740041439554,-154.037813,0.0001378,2]
[353778507,1740041439563,-500.0,0.0001378,2]
[353778508,1740041439573,-500.0,0.0001378,2]
[353778509,1740041439582,-616.71,0.0001378,2]
[353778510,1740041439591,-500.0,0.0001378,2]
[353778511,1740041439600,-500.0,0.0001378,2]
[353778512,1740041439609,-501.55270866,0.0001378,2]
[353778513,1740041439618,-500.0,0.0001378,2]
[353778514,1740041439627,-500.0,0.0001378,2]
[353778515,1740041439637,-500.0,0.0001378,2]
[353778516,1740041439646,-258.546649,0.0001378,2]
[353778517,1740041439655,-306.85,0.0001378,2]
[353778518,1740041439665,-258.546649,0.0001378,2]
[353778519,1740041439674,-500.0,0.0001378,2]
[353778520,1740041439684,-500.0,0.0001378,2]
[353778521,1740041439693,-548.58,0.0001378,2]
[353778522,1740041439704,-284.276308,0.0001378,2]
[353778523,1740041439812,-284.276308,0.0001378,2]
[353778524,1740041439822,-284.276308,0.0001378,2]
[353778525,1740041439831,-284.276308,0.0001378,2]
[353778526,1740041439840,-500.0,0.0001378,2]
[353778527,1740041439849,-500.0,0.0001378,2]
[353778528,1740041439859,-500.0,0.0001378,2]
[353778529,1740041439868,-488.830567,0.0001378,2]
[353778530,1740041439878,-488.830567,0.0001378,2]
[353778531,1740041439888,-500.0,0.0001378,2]
[353778532,1740041439897,-500.0,0.0001378,2]
[353778533,1740041439907,-500.0,0.0001378,2]
[353778534,1740041439916,-151.0,0.0001378,2]
[353778535,1740041439925,-183.664268,0.0001378,2]
[353778536,1740041439935,-373.564994,0.0001378,2]
[353778537,1740041439944,-373.564994,0.0001378,2]
[353778538,1740041439953,-500.0,0.0001378,2]
[353778539,1740041439963,-1958.157841,0.0001378,2]
[353778540,1740041439972,-1958.157841,0.0001378,2]
[353778541,1740041439981,-273.907041,0.0001378,2]
[353778542,1740041439991,-273.907041,0.0001378,2]
[353778543,1740041440001,-1958.157841,0.0001378,2]
[353778545,1740041440010,-466.80047857,0.0001378,2]
[353778553,1740041440170,-710.17380002,0.00013699,2]
[353778738,1740042218631,258.627785,9.041e-05,2]
[353778740,1740042397131,-397.753,0.00013431,2]
[353778741,1740042397154,-98.75264045,0.00013504,2]
[353779031,1740042566298,-744.7007325,0.00013504,2]
[353779032,1740042566328,-500.0,0.00013504,3]
[353779033,1740042566356,-500.0,0.00013504,3]
[353779034,1740042566383,-415.16,0.00013504,3]
[353779035,1740042566412,-300.0,0.00013511,2]
[353779036,1740042566440,-13275.78028017,0.00013512,2]
[353779037,1740042566468,-322.65068486,0.00013599,2]
[353779038,1740042566496,-502.46473782,0.00013673,2]
[353779039,1740042566525,-502.97018534,0.00013673,2]
[353779040,1740042566552,-281.41196119,0.00013673,2]
[353779041,1740042566579,-501.58613437,0.00013673,2]
[353779042,1740042566608,-500.0,0.00013673,2]
[353779043,1740042566635,-502.00828484,0.00013673,2]
[353779044,1740042566663,-3000.0,0.0001368,2]
[353779045,1740042566691,-500.0,0.00013697,2]
[353779046,1740042566720,-488.08260076,0.00013697,2]
[353779047,1740042566749,-500.0,0.00013697,2]
[353779048,1740042566777,-211.51784821,0.00013697,2]
[353779049,1740042566804,-552.68566601,0.00013697,2]
[353779050,1740042566832,-503.82539058,0.00013698,2]
[353779051,1740042566859,-500.0,0.00013698,2]
[353779052,1740042566887,-500.0,0.00013698,2]
[353779053,1740042566915,-500.0,0.00013698,2]
[353779054,1740042566948,-500.0,0.00013698,2]
[353779055,1740042566975,-500.0,0.00013698,2]
[353779056,1740042567004,-500.0,0.00013698,2]
[353779057,1740042567032,-500.0,0.00013698,2]
[353779058,1740042567059,-542.03,0.00013698,2]
[353779059,1740042567086,-304.21901865,0.00013698,2]
[353779060,1740042567114,-500.0,0.00013698,2]
[353779061,1740042567142,-500.0,0.00013698,2]
[353779062,1740042567169,-500.0,0.00013698,2]
[353779063,1740042567197,-587.98,0.00013698,2]
[353779064,1740042567226,-508.83110803,0.00013698,2]
[353779065,1740042567253,-500.0,0.00013698,2]
[353779066,1740042567282,-407.96857615,0.00013698,2]
[353779067,1740042567309,-500.0,0.00013698,2]
[353779068,1740042567337,-531.02,0.00013698,2]
[353779069,1740042567364,-500.0,0.00013698,2]
[353779070,1740042567392,-500.0,0.00013698,2]
[353779071,1740042567420,-500.0,0.00013698,2]
[353779072,1740042567447,-500.0,0.00013698,2]
[353779073,1740042567488,-500.0,0.00013698,2]
[353779074,1740042567519,-500.0,0.00013698,2]
[353779075,1740042567548,-504.85249423,0.00013698,2]
[353779076,1740042567576,-503.40313587,0.00013698,2]
[353779077,1740042567606,-500.0,0.00013698,2]
[353779078,1740042567634,-500.0,0.00013698,2]
[353779079,1740042567661,-500.0,0.00013698,2]
[353779080,1740042567690,-500.0,0.00013698,2]
[353779081,1740042567718,-504.57729409,0.00013698,2]
[353779082,1740042567748,-500.0,0.00013698,2]
[353779083,1740042567777,-500.0,0.00013698,2]
[353779084,1740042567806,-500.0,0.00013698,2]
[353779085,1740042567836,-500.0,0.00013698,2]
[353779086,1740042567866,-500.0,0.00013698,2]
[353779087,1740042567894,-500.0,0.00013698,2]
[353779088,1740042567923,-500.0,0.00013698,2]
[353779089,1740042567957,-500.0,0.00013698,2]
[353779090,1740042567990,-500.0,0.00013698,2]
[353779091,1740042568021,-500.0,0.00013698,2]
[353779092,1740042568050,-500.0,0.00013698,2]
[353779093,1740042568077,-500.36790525,0.00013698,2]
[353779094,1740042568104,-514.83549926,0.00013698,2]
[353779095,1740042568133,-454.6909977,0.00013698,2]
[353779096,1740042568161,-500.0,0.00013698,2]
[353779097,1740042568190,-500.0,0.00013698,2]
[353779098,1740042568222,-613.64,0.00013698,2]
[353779099,1740042568252,-610.43,0.00013698,2]
[353779100,1740042568282,-500.0,0.00013698,2]
[353779101,1740042568311,-500.0,0.00013698,2]
[353779102,1740042568499,-500.0,0.00013698,2]
[353779103,1740042568528,-500.0,0.00013698,2]
[353779104,1740042568555,-465.00578398,0.00013698,2]
[353779105,1740042568582,-500.0,0.00013698,2]
[353779106,1740042568609,-500.0,0.00013698,2]
[353779107,1740042568636,-500.0,0.00013698,2]
[353779108,1740042568664,-629.92,0.00013698,2]
[353779109,1740042568691,-500.0,0.00013698,2]
[353779110,1740042568717,-500.0,0.00013698,2]
[353779111,1740042568744,-500.0,0.00013698,2]
[353779112,1740042568772,-151.0,0.00013698,2]
[353779113,1740042568799,-500.0,0.00013698,2]
[353779114,1740042568827,-500.0,0.00013698,2]
[353779115,1740042568856,-500.0,0.00013698,2]
[353779116,1740042568884,-500.0,0.00013698,2]
[353779117,1740042568912,-391.064454,0.00013698,2]
[353779118,1740042568942,-391.064454,0.00013698,2]
[353779119,1740042568969,-318.91739924,0.00013698,2]
[353779120,1740042569001,-500.0,0.00013698,2]
[353779121,1740042569032,-500.0,0.00013698,2]
[353779122,1740042569060,-500.0,0.00013698,2]
[353779123,1740042569087,-151.0,0.00013698,2]
[353779124,1740042569114,-500.0,0.00013698,2]
[353779125,1740042569142,-500.0,0.00013698,2]
[353779126,1740042569169,-500.0,0.00013698,2]
[353779127,1740042569198,-500.0,0.00013698,2]
[353779128,1740042569225,-500.0,0.00013698,2]
[353779129,1740042569254,-500.0,0.00013698,2]
[353779130,1740042569282,-500.0,0.00013698,2]
[353779131,1740042569310,-500.0,0.00013698,2]
[353779132,1740042569338,-500.0,0.00013698,2]
[353779133,1740042569365,-500.0,0.00013698,2]
[353779134,1740042569392,-500.0,0.00013698,2]
[353779135,1740042569420,-600.96,0.00013698,2]
[353779136,1740042569448,-500.0,0.00013698,2]
[353779137,1740042569475,-381.48857592,0.00013698,2]
[353779138,1740042569503,-500.0,0.00013698,2]
[353779139,1740042569529,-500.0,0.00013698,2]
[353779140,1740042569556,-500.0,0.00013698,2]
[353779141,1740042569587,-500.0,0.00013698,2]
[353779142,1740042569617,-500.0,0.00013698,2]
[353779143,1740042569646,-500.0,0.00013698,2]
[353779144,1740042569673,-151.0,0.00013698,2]
[353779145,1740042569701,-151.0,0.00013698,2]
[353779146,1740042569728,-500.0,0.00013698,2]
[353779147,1740042569755,-500.0,0.00013698,2]
[353779148,1740042569783,-500.0,0.00013698,2]
[353779149,1740042569810,-731.831847,0.00013698,2]
[353779150,1740042569836,-500.0,0.00013698,2]
[353779151,1740042569876,-176.079671,0.00013698,2]
[353779152,1740042569905,-731.831847,0.00013698,2]
[353779153,1740042569934,-500.0,0.00013698,2]
[353779154,1740042569965,-176.079671,0.00013698,2]
[353779155,1740042569996,-537.94,0.00013698,2]
[353779156,1740042570025,-500.0,0.00013698,2]
[353779157,1740042570055,-500.0,0.00013698,2]
[353779158,1740042570082,-500.0,0.00013698,2]
[353779159,1740042570111,-500.0,0.00013698,2]
[353779160,1740042570139,-500.0,0.00013698,2]
[353779161,1740042570166,-294.5794044,0.00013698,2]
[353779162,1740042570194,-362.19803798,0.00013698,2]
[353779163,1740042570221,-449.705202,0.00013698,2]
[353779164,1740042570248,-500.0,0.00013698,2]
[353779165,1740042570276,-449.705202,0.00013698,2]
[353779166,1740042570304,-500.0,0.00013698,2]
[353779167,1740042570331,-500.0,0.00013698,2]
[353779168,1740042570357,-200.525836,0.00013698,2]
[353779169,1740042570384,-200.525836,0.00013698,2]
[353779170,1740042570412,-200.525836,0.00013698,2]
[353779171,1740042570439,-200.525836,0.00013698,2]
[353779172,1740042570468,-1445.278357,0.00013698,2]
[353779173,1740042570495,-1445.278357,0.00013698,2]
[353779174,1740042570526,-198.993416,0.00013698,2]
[353779175,1740042570554,-198.993416,0.00013698,2]
[353779176,1740042570582,-198.993416,0.00013698,2]
[353779177,1740042570609,-1445.278357,0.00013698,2]
[353779178,1740042570636,-1445.278357,0.00013698,2]
[353779179,1740042570663,-500.0,0.00013698,2]
[353779180,1740042570690,-198.993416,0.00013698,2]
[353779181,1740042570717,-198.993416,0.00013698,2]
[353779182,1740042570744,-198.993416,0.00013698,2]
[353779183,1740042570772,-500.0,0.00013698,2]
[353779184,1740042570799,-500.0,0.00013698,2]
[353779185,1740042570826,-358.694236,0.00013698,2]
[353779186,1740042570852,-358.694236,0.00013698,2]
[353779187,1740042570880,-500.0,0.00013698,2]
[353779188,1740042570909,-358.694236,0.00013698,2]
[353779189,1740042570936,-358.694236,0.00013698,2]
[353779190,1740042571098,-500.0,0.00013698,2]
[353779191,1740042571131,-248.878955,0.00013698,2]
[353779192,1740042571158,-248.878955,0.00013698,2]
[353779193,1740042571185,-500.0,0.00013698,2]
[353779194,1740042571212,-500.0,0.00013698,2]
[353779195,1740042571240,-500.0,0.00013698,2]
[353779196,1740042571268,-248.878955,0.00013698,2]
[353779197,1740042571299,-248.878955,0.00013698,2]
[353779198,1740042571327,-500.0,0.00013698,2]
[353779199,1740042571355,-151.0,0.00013698,2]
[353779200,1740042571384,-500.0,0.00013698,2]
[353779201,1740042571414,-151.0,0.00013698,2]
[353779202,1740042571443,-151.0,0.00013698,2]
[353779203,1740042571472,-559.97609986,0.00013698,2]
[353779204,1740042571500,-500.0,0.00013698,2]
[353779205,1740042571530,-151.0,0.00013698,2]
[353779206,1740042571558,-151.0,0.00013698,2]
[353779207,1740042571588,-151.0,0.00013698,2]
[353779208,1740042571618,-500.0,0.00013698,2]
[353779209,1740042571647,-500.0,0.00013698,2]
[353779210,1740042571673,-500.0,0.00013698,2]
[353779211,1740042571703,-588.44,0.00013698,2]
[353779212,1740042571730,-500.0,0.00013698,2]
[353779213,1740042571760,-500.0,0.00013698,2]
[353779214,1740042571789,-500.0,0.00013698,2]
[353779215,1740042571817,-500.0,0.00013698,2]
[353779216,1740042571847,-501.55816953,0.00013698,2]
[353779217,1740042571878,-500.0,0.00013698,2]
[353779218,1740042571906,-500.0,0.00013698,2]
[353779219,1740042571934,-648.21681595,0.00013698,2]
[353779220,1740042571966,-500.0,0.00013698,2]
[353779221,1740042571993,-500.0,0.00013698,2]
[353779222,1740042572024,-500.0,0.00013698,2]
[353779223,1740042572052,-500.0,0.00013698,2]
[353779224,1740042572080,-500.0,0.00013698,2]
[353779225,1740042572108,-500.0,0.00013698,2]
[353779226,1740042572136,-500.0,0.00013698,2]
[353779227,1740042572165,-500.0,0.00013698,2]
[353779228,1740042572195,-1274.0,0.00013698,2]
[353779229,1740042572224,-500.0,0.00013698,2]
[353779230,1740042572253,-500.0,0.00013698,2]
[353779231,1740042572284,-500.0,0.00013698,2]
[353779232,1740042572314,-500.0,0.00013698,2]
[353779233,1740042572342,-464.38997811,0.00013698,2]
[353779234,1740042572372,-500.0,0.00013698,2]
[353779235,1740042572401,-503.85906928,0.00013698,2]
[353779236,1740042572430,-500.0,0.00013698,2]
[353779237,1740042572459,-500.0,0.00013698,2]
[353779238,1740042572490,-8566.15,0.00013698,2]
[353779239,1740042572519,-500.0,0.00013698,2]
[353779240,1740042572548,-500.0,0.00013698,2]
[353779241,1740042572575,-500.0,0.00013698,2]
[353779242,1740042572604,-500.0,0.00013698,2]
[353779243,1740042572633,-586.8,0.00013698,2]
[353779244,1740042572662,-308.58384707,0.00013698,2]
[353779245,1740042572690,-500.0,0.00013698,2]
[353779246,1740042572718,-500.0,0.00013698,2]
[353779247,1740042572747,-676.53,0.00013698,2]
[353779248,1740042572776,-500.0,0.00013698,2]
[353779249,1740042572805,-500.0,0.00013698,2]
[353779250,1740042572833,-151.0,0.00013698,2]
[353779251,1740042572861,-500.0,0.00013698,2]
[353779252,1740042572889,-151.0,0.00013698,2]
[353779253,1740042572917,-151.0,0.00013698,2]
[353779254,1740042572948,-500.0,0.00013698,2]
[353779255,1740042572976,-151.0,0.00013698,2]
[353779256,1740042573006,-213.96652276,0.00013698,2]
[353779257,1740042573034,-151.0,0.00013698,2]
[353779258,1740042573062,-151.0,0.00013698,2]
[353779259,1740042573092,-500.0,0.00013698,2]